[Event "Titled Tuesday Blitz June 22 2021"]
[White "Nakamura, Hikaru"]
[Black "Korobov, Anton"]
[WhiteFideId "2016192"]
[BlackFideId "14105730"]
[WhiteElo "2900"]
[BlackElo "2668"]
[Result "0-1"]
[Round "06"]
[TimeControl "180+1"]
[Date "2021.06.22"]
[WhiteClock "0:00:03"]
[BlackClock "0:00:31"]

1. e4 {[%clk 0:03:00]}  c5 {[%clk 0:02:59]} 2. Nf3 {[%clk 0:03:01]}  Nc6 {[%clk 0:02:59]} 3. Bb5 {[%clk 0:02:57]}  e6 {[%clk 0:02:59]} 4. Bxc6 {[%clk 0:02:57]}  bxc6 {[%clk 0:02:59]} 5. O-O {[%clk 0:02:57]}  d5 {[%clk 0:02:59]} 6. d3 {[%clk 0:02:57]}  Ne7 {[%clk 0:02:59]} 7. Re1 {[%clk 0:02:56]}  Ng6 {[%clk 0:02:59]} 8. c4 {[%clk 0:02:56]}  Be7 {[%clk 0:02:58]} 9. Nc3 {[%clk 0:02:54]}  O-O {[%clk 0:02:50]} 10. b3 {[%clk 0:02:53]}  Bf6 {[%clk 0:02:24]} 11. e5 {[%clk 0:02:45]}  Be7 {[%clk 0:02:24]} 12. Na4 {[%clk 0:02:45]}  f6 {[%clk 0:02:25]} 13. Bb2 {[%clk 0:02:30]}  Qc7 {[%clk 0:02:10]} 14. g3 {[%clk 0:02:23]}  Bd7 {[%clk 0:02:04]} 15. Qe2 {[%clk 0:02:22]}  Rf7 {[%clk 0:02:01]} 16. exf6 {[%clk 0:02:18]}  gxf6 {[%clk 0:01:58]} 17. Ba3 {[%clk 0:02:14]}  e5 {[%clk 0:01:58]} 18. Bxc5 {[%clk 0:02:13]}  Bg4 {[%clk 0:01:51]} 19. h3 {[%clk 0:01:40]}  Bxh3 {[%clk 0:01:50]} 20. Nd2 {[%clk 0:01:38]}  Rg7 {[%clk 0:01:39]} 21. Kh2 {[%clk 0:01:33]}  Be6 {[%clk 0:01:34]} 22. cxd5 {[%clk 0:01:26]}  cxd5 {[%clk 0:01:33]} 23. Rac1 {[%clk 0:01:26]}  Qd7 {[%clk 0:01:26]} 24. Bxe7 {[%clk 0:01:23]}  Qxe7 {[%clk 0:01:27]} 25. Qh5 {[%clk 0:01:17]}  Qb4 {[%clk 0:01:18]} 26. Nf1 {[%clk 0:01:02]}  Rf8 {[%clk 0:01:07]} 27. Ne3 {[%clk 0:00:53]}  Nf4 {[%clk 0:00:59]} 28. gxf4 {[%clk 0:00:41]}  Qxf4+ {[%clk 0:01:00]} 29. Kh1 {[%clk 0:00:42]}  Qxf2 {[%clk 0:01:00]} 30. Re2 {[%clk 0:00:34]}  Qg3 {[%clk 0:01:00]} 31. Rf1 {[%clk 0:00:14]}  d4 {[%clk 0:00:59]} 32. Nc5 {[%clk 0:00:11]}  Bh3 {[%clk 0:00:54]} 33. Nf5 {[%clk 0:00:11]}  Bg2+ {[%clk 0:00:52]} 34. Kg1 {[%clk 0:00:11]}  Bf3+ {[%clk 0:00:41]} 35. Nxg3 {[%clk 0:00:12]}  Rxg3+ {[%clk 0:00:40]} 36. Kf2 {[%clk 0:00:09]}  Bxh5 {[%clk 0:00:41]} 37. Kxg3 {[%clk 0:00:09]}  Bxe2 {[%clk 0:00:41]} 38. Rf2 {[%clk 0:00:09]}  Bh5 {[%clk 0:00:40]} 39. Nd7 {[%clk 0:00:10]}  Bg6 {[%clk 0:00:32]} 40. Nxf8 {[%clk 0:00:10]}  Kxf8 {[%clk 0:00:32]} 41. Rxf6+ {[%clk 0:00:11]}  Ke7 {[%clk 0:00:33]} 42. Ra6 {[%clk 0:00:10]}  Bxd3 {[%clk 0:00:33]} 43. Rxa7+ {[%clk 0:00:11]}  Kd6 {[%clk 0:00:34]} 44. b4 {[%clk 0:00:11]}  e4 {[%clk 0:00:34]} 45. Rxh7 {[%clk 0:00:11]}  e3 {[%clk 0:00:34]} 46. Rh8 {[%clk 0:00:11]}  Be4 {[%clk 0:00:33]} 47. Re8 {[%clk 0:00:06]}  Bc6 {[%clk 0:00:33]} 48. Rd8+ {[%clk 0:00:04]}  Ke5 {[%clk 0:00:32]} 49. Rc8 {[%clk 0:00:04]}  d3 {[%clk 0:00:32]} 50. b5 {[%clk 0:00:03]}  d2 {[%clk 0:00:31]} 0-1


[Site "https://www.chess.com"]

[Event "Titled Tuesday Blitz June 22 2021"]
[White "Pichot, Alan"]
[Black "David, Alexandru-Vasile"]
[WhiteFideId "110973"]
[BlackFideId "1223453"]
[WhiteElo "2622"]
[BlackElo "2404"]
[Result "1-0"]
[Round "06"]
[TimeControl "180+1"]
[Date "2021.06.22"]
[WhiteClock "0:01:10"]
[BlackClock "0:00:17"]

1. e4 {[%clk 0:03:00]}  c5 {[%clk 0:02:59]} 2. Nf3 {[%clk 0:03:01]}  e6 {[%clk 0:03:00]} 3. d4 {[%clk 0:03:01]}  cxd4 {[%clk 0:03:01]} 4. Nxd4 {[%clk 0:03:01]}  Nf6 {[%clk 0:03:02]} 5. Nc3 {[%clk 0:03:02]}  Nc6 {[%clk 0:03:02]} 6. Nxc6 {[%clk 0:03:01]}  bxc6 {[%clk 0:03:03]} 7. e5 {[%clk 0:03:01]}  Nd5 {[%clk 0:03:03]} 8. Ne4 {[%clk 0:03:02]}  Qc7 {[%clk 0:03:02]} 9. f4 {[%clk 0:03:03]}  Qb6 {[%clk 0:03:01]} 10. c4 {[%clk 0:03:03]}  Bb4+ {[%clk 0:03:01]} 11. Ke2 {[%clk 0:03:04]}  f5 {[%clk 0:03:01]} 12. Nf2 {[%clk 0:03:05]}  Ba6 {[%clk 0:02:46]} 13. Kf3 {[%clk 0:03:04]}  Ne7 {[%clk 0:02:46]} 14. Be3 {[%clk 0:03:05]}  Bc5 {[%clk 0:02:46]} 15. Bxc5 {[%clk 0:03:05]}  Qxc5 {[%clk 0:02:47]} 16. Qd6 {[%clk 0:03:06]}  Qa5 {[%clk 0:02:46]} 17. h4 {[%clk 0:03:05]}  Rd8 {[%clk 0:02:44]} 18. Be2 {[%clk 0:02:32]}  Nc8 {[%clk 0:02:40]} 19. Qd4 {[%clk 0:02:32]}  c5 {[%clk 0:02:39]} 20. Qe3 {[%clk 0:02:30]}  O-O {[%clk 0:02:31]} 21. Rhd1 {[%clk 0:02:29]}  Rfe8 {[%clk 0:02:26]} 22. Rd2 {[%clk 0:02:25]}  d5 {[%clk 0:01:39]} 23. exd6 {[%clk 0:02:23]}  Rxd6 {[%clk 0:01:33]} 24. Rad1 {[%clk 0:02:17]}  Qb6 {[%clk 0:01:24]} 25. Qe5 {[%clk 0:02:05]}  Red8 {[%clk 0:01:23]} 26. Rxd6 {[%clk 0:02:04]}  Rxd6 {[%clk 0:01:23]} 27. Rxd6 {[%clk 0:02:04]}  Qxd6 {[%clk 0:01:23]} 28. Qxd6 {[%clk 0:02:02]}  Nxd6 {[%clk 0:01:24]} 29. b3 {[%clk 0:02:03]}  Bb7+ {[%clk 0:01:24]} 30. Kg3 {[%clk 0:01:24]}  Ne4+ {[%clk 0:01:22]} 31. Nxe4 {[%clk 0:01:25]}  Bxe4 {[%clk 0:01:22]} 32. Bf3 {[%clk 0:01:25]}  Bb1 {[%clk 0:01:22]} 33. a3 {[%clk 0:01:25]}  Kf7 {[%clk 0:01:15]} 34. b4 {[%clk 0:01:22]}  Bd3 {[%clk 0:01:11]} 35. bxc5 {[%clk 0:01:15]}  Bxc4 {[%clk 0:01:11]} 36. Kf2 {[%clk 0:01:12]}  Kf6 {[%clk 0:00:59]} 37. Bb7 {[%clk 0:01:11]}  e5 {[%clk 0:00:48]} 38. c6 {[%clk 0:01:11]}  Bd5 {[%clk 0:00:48]} 39. Ba8 {[%clk 0:01:11]}  exf4 {[%clk 0:00:15]} 40. c7 {[%clk 0:01:11]}  Be6 {[%clk 0:00:16]} 41. Bb7 {[%clk 0:01:09]}  g5 {[%clk 0:00:16]} 42. hxg5+ {[%clk 0:01:08]}  Kxg5 {[%clk 0:00:16]} 43. c8=Q {[%clk 0:01:09]}  Bxc8 {[%clk 0:00:17]} 44. Bxc8 {[%clk 0:01:10]} 1-0


[Site "https://www.chess.com"]

[Event "Titled Tuesday Blitz June 22 2021"]
[White "Real De Azua, Ernesto"]
[Black "Demchenko, Anton"]
[WhiteFideId "108154"]
[BlackFideId "4160258"]
[WhiteElo "2476"]
[BlackElo "2593"]
[Result "0-1"]
[Round "06"]
[TimeControl "180+1"]
[Date "2021.06.22"]
[WhiteClock "0:00:04"]
[BlackClock "0:00:27"]

1. Nf3 {[%clk 0:03:00]}  Nf6 {[%clk 0:03:00]} 2. c4 {[%clk 0:03:00]}  g6 {[%clk 0:03:00]} 3. Nc3 {[%clk 0:03:00]}  Bg7 {[%clk 0:03:01]} 4. e4 {[%clk 0:02:59]}  O-O {[%clk 0:03:01]} 5. d4 {[%clk 0:02:59]}  d6 {[%clk 0:03:02]} 6. Be2 {[%clk 0:02:56]}  e5 {[%clk 0:03:01]} 7. Be3 {[%clk 0:02:56]}  Nbd7 {[%clk 0:03:00]} 8. O-O {[%clk 0:02:54]}  c6 {[%clk 0:03:00]} 9. d5 {[%clk 0:02:49]}  Qe7 {[%clk 0:03:01]} 10. Bg5 {[%clk 0:02:46]}  h6 {[%clk 0:02:59]} 11. Bh4 {[%clk 0:02:45]}  c5 {[%clk 0:02:57]} 12. Ne1 {[%clk 0:02:38]}  a6 {[%clk 0:02:57]} 13. Nd3 {[%clk 0:02:33]}  Qe8 {[%clk 0:02:56]} 14. f3 {[%clk 0:02:28]}  Nh5 {[%clk 0:02:48]} 15. a3 {[%clk 0:02:20]}  Nf4 {[%clk 0:02:47]} 16. b4 {[%clk 0:02:11]}  f5 {[%clk 0:02:41]} 17. Bf2 {[%clk 0:02:04]}  b6 {[%clk 0:02:40]} 18. Rb1 {[%clk 0:02:00]}  Qe7 {[%clk 0:02:19]} 19. Na4 {[%clk 0:01:29]}  Ra7 {[%clk 0:02:16]} 20. Nxb6 {[%clk 0:01:10]}  Nxe2+ {[%clk 0:02:03]} 21. Qxe2 {[%clk 0:01:09]}  Nxb6 {[%clk 0:02:04]} 22. bxc5 {[%clk 0:01:08]}  Nxc4 {[%clk 0:02:04]} 23. Rbc1 {[%clk 0:00:49]}  Nxa3 {[%clk 0:01:53]} 24. cxd6 {[%clk 0:00:47]}  Qf7 {[%clk 0:01:53]} 25. exf5 {[%clk 0:00:31]}  Bxf5 {[%clk 0:01:45]} 26. Nxe5 {[%clk 0:00:27]}  Qe8 {[%clk 0:01:18]} 27. f4 {[%clk 0:00:21]}  Ra8 {[%clk 0:01:02]} 28. Rc7 {[%clk 0:00:16]}  Nb5 {[%clk 0:01:03]} 29. Re7 {[%clk 0:00:16]}  Qd8 {[%clk 0:00:52]} 30. g4 {[%clk 0:00:15]}  Qxd6 {[%clk 0:00:48]} 31. Nc4 {[%clk 0:00:10]}  Nc3 {[%clk 0:00:42]} 32. Qe1 {[%clk 0:00:08]}  Qxd5 {[%clk 0:00:40]} 33. gxf5 {[%clk 0:00:06]}  Qxc4 {[%clk 0:00:41]} 34. fxg6 {[%clk 0:00:04]}  Bf6 {[%clk 0:00:33]} 35. Re6 {[%clk 0:00:02]}  Qxf4 {[%clk 0:00:29]} 36. Bg3 {[%clk 0:00:01]}  Bd4+ {[%clk 0:00:26]} 37. Kg2 {[%clk 0:00:02]}  Qxf1+ {[%clk 0:00:27]} 38. Qxf1 {[%clk 0:00:03]}  Rxf1 {[%clk 0:00:27]} 39. Kxf1 {[%clk 0:00:04]}  a5 {[%clk 0:00:27]} 0-1


[Site "https://www.chess.com"]

[Event "Titled Tuesday Blitz June 22 2021"]
[White "Smirnov, Pavel"]
[Black "Materia, Marco"]
[WhiteFideId "4123425"]
[BlackFideId "45150451"]
[WhiteElo "2584"]
[BlackElo "2651"]
[Result "1-0"]
[Round "06"]
[TimeControl "180+1"]
[Date "2021.06.22"]
[WhiteClock "0:00:44"]
[BlackClock "0:00:02"]

1. e4 {[%clk 0:03:00]}  c5 {[%clk 0:02:58]} 2. c3 {[%clk 0:03:01]}  d5 {[%clk 0:02:57]} 3. exd5 {[%clk 0:03:01]}  Qxd5 {[%clk 0:02:57]} 4. d4 {[%clk 0:03:02]}  Nf6 {[%clk 0:02:57]} 5. Nf3 {[%clk 0:03:02]}  e6 {[%clk 0:02:57]} 6. Na3 {[%clk 0:03:03]}  Be7 {[%clk 0:02:49]} 7. Nb5 {[%clk 0:03:00]}  Na6 {[%clk 0:02:48]} 8. Be2 {[%clk 0:02:58]}  O-O {[%clk 0:02:47]} 9. O-O {[%clk 0:02:55]}  cxd4 {[%clk 0:02:45]} 10. c4 {[%clk 0:02:54]}  Qd8 {[%clk 0:02:41]} 11. Bf4 {[%clk 0:02:51]}  Bd7 {[%clk 0:02:34]} 12. Nfxd4 {[%clk 0:02:50]}  Qb6 {[%clk 0:02:16]} 13. Nb3 {[%clk 0:02:36]}  Bxb5 {[%clk 0:02:12]} 14. cxb5 {[%clk 0:02:33]}  Nb4 {[%clk 0:02:08]} 15. Be3 {[%clk 0:02:26]}  Qd8 {[%clk 0:02:07]} 16. Bd4 {[%clk 0:02:21]}  Nbd5 {[%clk 0:01:58]} 17. Bf3 {[%clk 0:02:18]}  Rc8 {[%clk 0:01:56]} 18. Qe2 {[%clk 0:02:15]}  Qc7 {[%clk 0:01:50]} 19. Rac1 {[%clk 0:02:09]}  Qb8 {[%clk 0:01:49]} 20. g3 {[%clk 0:01:57]}  Rxc1 {[%clk 0:01:45]} 21. Rxc1 {[%clk 0:01:58]}  Rc8 {[%clk 0:01:42]} 22. Rd1 {[%clk 0:01:58]}  h6 {[%clk 0:01:37]} 23. a4 {[%clk 0:01:58]}  Qc7 {[%clk 0:01:25]} 24. Be5 {[%clk 0:01:44]}  Qc4 {[%clk 0:01:19]} 25. Rc1 {[%clk 0:01:43]}  Qxc1+ {[%clk 0:01:10]} 26. Nxc1 {[%clk 0:01:44]}  Rxc1+ {[%clk 0:01:09]} 27. Kg2 {[%clk 0:01:44]}  Ra1 {[%clk 0:00:53]} 28. Qc2 {[%clk 0:01:37]}  Bf8 {[%clk 0:00:47]} 29. Qc8 {[%clk 0:01:35]}  Ne7 {[%clk 0:00:42]} 30. Qc4 {[%clk 0:01:20]}  b6 {[%clk 0:00:40]} 31. b3 {[%clk 0:01:18]}  Ra2 {[%clk 0:00:38]} 32. Bxf6 {[%clk 0:01:16]}  gxf6 {[%clk 0:00:37]} 33. Qc7 {[%clk 0:01:17]}  Nf5 {[%clk 0:00:34]} 34. Bh5 {[%clk 0:01:13]}  Ne7 {[%clk 0:00:24]} 35. Qxa7 {[%clk 0:01:12]}  Rc2 {[%clk 0:00:10]} 36. Qxb6 {[%clk 0:01:06]}  Nc8 {[%clk 0:00:09]} 37. Qb7 {[%clk 0:01:00]}  Nd6 {[%clk 0:00:09]} 38. Qa8 {[%clk 0:01:00]}  Nf5 {[%clk 0:00:07]} 39. Qb7 {[%clk 0:00:49]}  Nd6 {[%clk 0:00:06]} 40. Qd7 {[%clk 0:00:48]}  Kg7 {[%clk 0:00:05]} 41. b6 {[%clk 0:00:47]}  Rc5 {[%clk 0:00:03]} 42. b7 {[%clk 0:00:46]}  Rxh5 {[%clk 0:00:02]} 43. b8=Q {[%clk 0:00:45]}  Rf5 {[%clk 0:00:02]} 44. Qxf8+ {[%clk 0:00:45]}  Kxf8 {[%clk 0:00:02]} 45. Qxd6+ {[%clk 0:00:45]}  Kg7 {[%clk 0:00:02]} 46. h4 {[%clk 0:00:45]}  Ra5 {[%clk 0:00:02]} 47. Qb6 {[%clk 0:00:44]}  Ra8 {[%clk 0:00:02]} 48. a5 {[%clk 0:00:44]}  h5 {[%clk 0:00:02]} 49. a6 {[%clk 0:00:44]}  f5 {[%clk 0:00:02]} 50. a7 {[%clk 0:00:44]}  Kf6 {[%clk 0:00:02]} 51. Qb7 {[%clk 0:00:44]} 1-0


[Site "https://www.chess.com"]

[Event "Titled Tuesday Blitz June 22 2021"]
[White "Vignesh, N R"]
[Black "Howell, David W L"]
[WhiteFideId "25012215"]
[BlackFideId "410608"]
[WhiteElo "2401"]
[BlackElo "2643"]
[Result "0-1"]
[Round "06"]
[TimeControl "180+1"]
[Date "2021.06.22"]
[WhiteClock "0:00:08"]
[BlackClock "0:00:10"]

1. d4 {[%clk 0:03:00]}  d5 {[%clk 0:02:55]} 2. Nf3 {[%clk 0:03:01]}  Nf6 {[%clk 0:02:54]} 3. e3 {[%clk 0:03:01]}  c5 {[%clk 0:02:49]} 4. b3 {[%clk 0:02:59]}  e6 {[%clk 0:02:45]} 5. Bd3 {[%clk 0:02:58]}  cxd4 {[%clk 0:02:43]} 6. exd4 {[%clk 0:02:58]}  Bb4+ {[%clk 0:02:43]} 7. Bd2 {[%clk 0:02:53]}  Nc6 {[%clk 0:02:39]} 8. a3 {[%clk 0:02:52]}  Bxd2+ {[%clk 0:02:37]} 9. Qxd2 {[%clk 0:02:45]}  O-O {[%clk 0:02:38]} 10. O-O {[%clk 0:02:45]}  b6 {[%clk 0:02:33]} 11. Re1 {[%clk 0:02:43]}  Bb7 {[%clk 0:02:33]} 12. Qf4 {[%clk 0:02:40]}  Rc8 {[%clk 0:02:26]} 13. Nbd2 {[%clk 0:02:39]}  Ne7 {[%clk 0:02:21]} 14. Ne5 {[%clk 0:02:36]}  Ng6 {[%clk 0:02:18]} 15. Qe3 {[%clk 0:02:33]}  Rc7 {[%clk 0:01:46]} 16. f4 {[%clk 0:02:30]}  Ne7 {[%clk 0:01:42]} 17. g4 {[%clk 0:02:28]}  Qa8 {[%clk 0:01:32]} 18. a4 {[%clk 0:01:43]}  a5 {[%clk 0:01:23]} 19. c4 {[%clk 0:01:21]}  Rfc8 {[%clk 0:01:19]} 20. g5 {[%clk 0:01:17]}  Ne4 {[%clk 0:00:58]} 21. Nxe4 {[%clk 0:01:15]}  Nf5 {[%clk 0:00:57]} 22. Nf6+ {[%clk 0:01:07]}  gxf6 {[%clk 0:00:58]} 23. Bxf5 {[%clk 0:01:07]}  fxe5 {[%clk 0:00:58]} 24. Bc2 {[%clk 0:00:56]}  dxc4 {[%clk 0:00:46]} 25. Qxe5 {[%clk 0:00:46]}  cxb3 {[%clk 0:00:42]} 26. Bxb3 {[%clk 0:00:45]}  Bd5 {[%clk 0:00:31]} 27. Bxd5 {[%clk 0:00:43]}  Qxd5 {[%clk 0:00:29]} 28. Qxd5 {[%clk 0:00:40]}  exd5 {[%clk 0:00:30]} 29. Rab1 {[%clk 0:00:40]}  Rc4 {[%clk 0:00:28]} 30. Red1 {[%clk 0:00:35]}  R8c6 {[%clk 0:00:24]} 31. Rb5 {[%clk 0:00:34]}  Rd6 {[%clk 0:00:19]} 32. f5 {[%clk 0:00:29]}  h6 {[%clk 0:00:17]} 33. h4 {[%clk 0:00:28]}  hxg5 {[%clk 0:00:18]} 34. hxg5 {[%clk 0:00:29]}  Rxa4 {[%clk 0:00:18]} 35. Kf2 {[%clk 0:00:29]}  Ra3 {[%clk 0:00:17]} 36. Rdb1 {[%clk 0:00:27]}  Rd3 {[%clk 0:00:17]} 37. Rxb6 {[%clk 0:00:26]}  Rxb6 {[%clk 0:00:18]} 38. Rxb6 {[%clk 0:00:26]}  Rxd4 {[%clk 0:00:19]} 39. Ke3 {[%clk 0:00:22]}  Rg4 {[%clk 0:00:17]} 40. Rb5 {[%clk 0:00:19]}  Rxg5 {[%clk 0:00:16]} 41. Rxd5 {[%clk 0:00:19]}  a4 {[%clk 0:00:16]} 42. Ra5 {[%clk 0:00:19]}  Rg4 {[%clk 0:00:15]} 43. Ra6 {[%clk 0:00:12]}  Kg7 {[%clk 0:00:14]} 44. Kf3 {[%clk 0:00:12]}  Rb4 {[%clk 0:00:14]} 45. Ke3 {[%clk 0:00:13]}  Rb1 {[%clk 0:00:11]} 46. Rxa4 {[%clk 0:00:12]}  Kf6 {[%clk 0:00:11]} 47. Ra5 {[%clk 0:00:12]}  Rf1 {[%clk 0:00:10]} 48. Ke4 {[%clk 0:00:12]}  Rf2 {[%clk 0:00:10]} 49. Rb5 {[%clk 0:00:12]}  Kg5 {[%clk 0:00:11]} 50. Ra5 {[%clk 0:00:11]}  Rf4+ {[%clk 0:00:10]} 51. Ke3 {[%clk 0:00:11]}  Rxf5 {[%clk 0:00:11]} 52. Ra4 {[%clk 0:00:10]}  Rf1 {[%clk 0:00:09]} 53. Ke2 {[%clk 0:00:11]}  Rf4 {[%clk 0:00:08]} 54. Ra8 {[%clk 0:00:10]}  f6 {[%clk 0:00:08]} 55. Rg8+ {[%clk 0:00:09]}  Kf5 {[%clk 0:00:08]} 56. Rg7 {[%clk 0:00:09]}  Ke4 {[%clk 0:00:08]} 57. Re7+ {[%clk 0:00:09]}  Kd4 {[%clk 0:00:09]} 58. Re8 {[%clk 0:00:08]}  Re4+ {[%clk 0:00:08]} 59. Rxe4+ {[%clk 0:00:08]}  Kxe4 {[%clk 0:00:09]} 60. Kf2 {[%clk 0:00:09]}  Kf4 {[%clk 0:00:10]} 61. Kg2 {[%clk 0:00:08]}  Ke3 {[%clk 0:00:10]} 62. Kg3 {[%clk 0:00:08]}  f5 {[%clk 0:00:10]} 0-1


[Site "https://www.chess.com"]

[Event "Titled Tuesday Blitz June 22 2021"]
[White "Bortnyk, Olexandr"]
[Black "Smirnov, Pavel"]
[WhiteFideId "14120828"]
[BlackFideId "4123425"]
[WhiteElo "2723"]
[BlackElo "2584"]
[Result "1-0"]
[Round "07"]
[TimeControl "180+1"]
[Date "2021.06.22"]
[WhiteClock "0:01:58"]
[BlackClock "0:00:58"]

1. e4 {[%clk 0:03:00]}  e5 {[%clk 0:02:59]} 2. Bc4 {[%clk 0:03:00]}  Nf6 {[%clk 0:02:58]} 3. d3 {[%clk 0:03:00]}  Nc6 {[%clk 0:02:54]} 4. Nc3 {[%clk 0:03:00]}  Na5 {[%clk 0:02:51]} 5. Nge2 {[%clk 0:03:01]}  Nxc4 {[%clk 0:02:51]} 6. dxc4 {[%clk 0:03:01]}  d6 {[%clk 0:02:51]} 7. Qd3 {[%clk 0:03:02]}  Be7 {[%clk 0:02:51]} 8. Bg5 {[%clk 0:03:02]}  O-O {[%clk 0:02:50]} 9. O-O {[%clk 0:03:01]}  c6 {[%clk 0:02:46]} 10. Rad1 {[%clk 0:03:01]}  Be6 {[%clk 0:02:46]} 11. b3 {[%clk 0:03:01]}  Ne8 {[%clk 0:02:39]} 12. Bxe7 {[%clk 0:02:56]}  Qxe7 {[%clk 0:02:40]} 13. f4 {[%clk 0:02:57]}  exf4 {[%clk 0:02:34]} 14. Nxf4 {[%clk 0:02:58]}  Bg4 {[%clk 0:02:34]} 15. Rde1 {[%clk 0:02:56]}  Qe5 {[%clk 0:02:31]} 16. h3 {[%clk 0:02:55]}  Bd7 {[%clk 0:02:28]} 17. Nce2 {[%clk 0:02:43]}  Rd8 {[%clk 0:02:26]} 18. Ng3 {[%clk 0:02:40]}  g6 {[%clk 0:02:26]} 19. Qf3 {[%clk 0:02:35]}  Ng7 {[%clk 0:02:24]} 20. Nd3 {[%clk 0:02:35]}  Qd4+ {[%clk 0:02:21]} 21. Kh1 {[%clk 0:02:34]}  Ne6 {[%clk 0:02:08]} 22. e5 {[%clk 0:02:26]}  Ng5 {[%clk 0:01:59]} 23. Qf6 {[%clk 0:02:11]}  Ne6 {[%clk 0:01:15]} 24. Re4 {[%clk 0:01:58]}  Qc3 {[%clk 0:01:04]} 25. Nf5 {[%clk 0:01:58]}  gxf5 {[%clk 0:00:58]} 26. Rxf5 {[%clk 0:01:58]} 1-0


[Site "https://www.chess.com"]

[Event "Titled Tuesday Blitz June 22 2021"]
[White "Donchenko, Alexander"]
[Black "Mortazavi, Ali"]
[WhiteFideId "24603295"]
[BlackFideId "401323"]
[WhiteElo "2553"]
[BlackElo "2339"]
[Result "1-0"]
[Round "07"]
[TimeControl "180+1"]
[Date "2021.06.22"]
[WhiteClock "0:00:38"]
[BlackClock "0:00:10"]

1. Nf3 {[%clk 0:03:00]}  Nf6 {[%clk 0:02:59]} 2. g3 {[%clk 0:03:00]}  g6 {[%clk 0:03:00]} 3. Bg2 {[%clk 0:03:00]}  Bg7 {[%clk 0:03:01]} 4. O-O {[%clk 0:03:01]}  O-O {[%clk 0:03:01]} 5. d4 {[%clk 0:03:02]}  d6 {[%clk 0:03:02]} 6. b3 {[%clk 0:03:02]}  a5 {[%clk 0:03:01]} 7. a4 {[%clk 0:03:02]}  Nc6 {[%clk 0:02:55]} 8. Bb2 {[%clk 0:03:02]}  Bf5 {[%clk 0:02:50]} 9. Nbd2 {[%clk 0:03:00]}  Qd7 {[%clk 0:02:40]} 10. d5 {[%clk 0:02:50]}  Nb4 {[%clk 0:02:36]} 11. c4 {[%clk 0:02:18]}  Bh3 {[%clk 0:02:25]} 12. e4 {[%clk 0:02:13]}  Bg4 {[%clk 0:02:15]} 13. Qe2 {[%clk 0:02:00]}  e5 {[%clk 0:02:09]} 14. dxe6 {[%clk 0:01:57]}  fxe6 {[%clk 0:02:08]} 15. Rac1 {[%clk 0:01:48]}  e5 {[%clk 0:02:02]} 16. c5 {[%clk 0:01:43]}  Nh5 {[%clk 0:01:58]} 17. cxd6 {[%clk 0:01:41]}  cxd6 {[%clk 0:01:57]} 18. Ba3 {[%clk 0:01:38]}  Kh8 {[%clk 0:01:45]} 19. Qb5 {[%clk 0:01:33]}  Qe7 {[%clk 0:01:18]} 20. Bxb4 {[%clk 0:01:25]}  axb4 {[%clk 0:01:18]} 21. Qxb4 {[%clk 0:01:25]}  Rf7 {[%clk 0:01:12]} 22. h3 {[%clk 0:01:19]}  Be6 {[%clk 0:01:09]} 23. Nc4 {[%clk 0:01:17]}  Bxc4 {[%clk 0:01:00]} 24. Qxc4 {[%clk 0:01:15]}  Raf8 {[%clk 0:01:01]} 25. Rc3 {[%clk 0:01:08]}  Bh6 {[%clk 0:00:47]} 26. a5 {[%clk 0:01:03]}  Nf6 {[%clk 0:00:20]} 27. b4 {[%clk 0:01:00]}  Nd7 {[%clk 0:00:19]} 28. Qc7 {[%clk 0:00:54]}  Qe6 {[%clk 0:00:18]} 29. Rd1 {[%clk 0:00:50]}  Nc5 {[%clk 0:00:14]} 30. Qb6 {[%clk 0:00:38]}  Nxe4 {[%clk 0:00:13]} 31. Rcd3 {[%clk 0:00:38]}  d5 {[%clk 0:00:10]} 32. Qxe6 {[%clk 0:00:38]} 1-0


[Site "https://www.chess.com"]

[Event "Titled Tuesday Blitz June 22 2021"]
[White "Dubov, Daniil"]
[Black "Perez Ponsa, Federico"]
[WhiteFideId "24126055"]
[BlackFideId "117927"]
[WhiteElo "2722"]
[BlackElo "2672"]
[Result "1-0"]
[Round "07"]
[TimeControl "180+1"]
[Date "2021.06.22"]
[WhiteClock "0:00:58"]
[BlackClock "0:00:45"]

1. d4 {[%clk 0:03:00]}  Nf6 {[%clk 0:03:00]} 2. c4 {[%clk 0:03:01]}  e6 {[%clk 0:03:00]} 3. Nf3 {[%clk 0:03:01]}  d5 {[%clk 0:03:00]} 4. g3 {[%clk 0:03:01]}  Bb4+ {[%clk 0:03:00]} 5. Nbd2 {[%clk 0:03:00]}  O-O {[%clk 0:02:59]} 6. Bg2 {[%clk 0:03:00]}  dxc4 {[%clk 0:02:55]} 7. Qc2 {[%clk 0:02:58]}  a5 {[%clk 0:02:50]} 8. a3 {[%clk 0:02:58]}  Bxd2+ {[%clk 0:02:36]} 9. Bxd2 {[%clk 0:02:59]}  b5 {[%clk 0:02:36]} 10. a4 {[%clk 0:02:59]}  c6 {[%clk 0:02:32]} 11. h4 {[%clk 0:02:59]}  Qd5 {[%clk 0:02:18]} 12. h5 {[%clk 0:02:41]}  Qe4 {[%clk 0:02:10]} 13. Qc1 {[%clk 0:02:27]}  Qf5 {[%clk 0:01:47]} 14. h6 {[%clk 0:02:22]}  g6 {[%clk 0:01:37]} 15. Nh4 {[%clk 0:01:55]}  Qg4 {[%clk 0:01:36]} 16. axb5 {[%clk 0:01:46]}  Bb7 {[%clk 0:01:28]} 17. Bf4 {[%clk 0:01:41]}  Qh5 {[%clk 0:01:18]} 18. Bg5 {[%clk 0:01:15]}  Nbd7 {[%clk 0:00:53]} 19. Nf5 {[%clk 0:00:59]}  Qg4 {[%clk 0:00:44]} 20. Ne7+ {[%clk 0:00:58]}  Kh8 {[%clk 0:00:45]} 21. Rh4 {[%clk 0:00:58]} 1-0


[Site "https://www.chess.com"]

[Event "Titled Tuesday Blitz June 22 2021"]
[White "Jobava, Baadur"]
[Black "Holt, Conrad"]
[WhiteFideId "13601520"]
[BlackFideId "2034387"]
[WhiteElo "2748"]
[BlackElo "2586"]
[Result "0-1"]
[Round "07"]
[TimeControl "180+1"]
[Date "2021.06.22"]
[WhiteClock "0:00:18"]
[BlackClock "0:00:42"]

1. d4 {[%clk 0:03:00]}  d5 {[%clk 0:02:59]} 2. Nc3 {[%clk 0:03:01]}  Nf6 {[%clk 0:02:58]} 3. Bf4 {[%clk 0:03:02]}  c6 {[%clk 0:02:55]} 4. e3 {[%clk 0:03:01]}  Bf5 {[%clk 0:02:55]} 5. f3 {[%clk 0:03:01]}  e6 {[%clk 0:02:52]} 6. g4 {[%clk 0:03:00]}  Bg6 {[%clk 0:02:52]} 7. h4 {[%clk 0:03:01]}  h6 {[%clk 0:02:48]} 8. h5 {[%clk 0:03:01]}  Bh7 {[%clk 0:02:48]} 9. Bd3 {[%clk 0:03:02]}  Bd6 {[%clk 0:02:44]} 10. Bxh7 {[%clk 0:02:59]}  Bxf4 {[%clk 0:02:41]} 11. exf4 {[%clk 0:03:00]}  Nxh7 {[%clk 0:02:41]} 12. Nge2 {[%clk 0:03:00]}  Nd7 {[%clk 0:02:35]} 13. Qd2 {[%clk 0:03:00]}  Nb6 {[%clk 0:02:33]} 14. b3 {[%clk 0:02:59]}  O-O {[%clk 0:02:27]} 15. Nc1 {[%clk 0:02:55]}  c5 {[%clk 0:02:17]} 16. dxc5 {[%clk 0:02:53]}  Nd7 {[%clk 0:02:17]} 17. Nd3 {[%clk 0:02:54]}  Rc8 {[%clk 0:01:59]} 18. Na4 {[%clk 0:02:51]}  Qf6 {[%clk 0:01:46]} 19. O-O {[%clk 0:02:41]}  e5 {[%clk 0:01:33]} 20. fxe5 {[%clk 0:02:36]}  Nxe5 {[%clk 0:01:34]} 21. Nxe5 {[%clk 0:02:32]}  Qxe5 {[%clk 0:01:34]} 22. Rae1 {[%clk 0:02:32]}  Qg3+ {[%clk 0:01:34]} 23. Qg2 {[%clk 0:02:32]}  Qf4 {[%clk 0:01:20]} 24. Qh2 {[%clk 0:02:32]}  Qf6 {[%clk 0:01:17]} 25. Qe5 {[%clk 0:02:32]}  Qh4 {[%clk 0:01:16]} 26. Kg2 {[%clk 0:02:31]}  f5 {[%clk 0:01:06]} 27. Rh1 {[%clk 0:02:13]}  Qg5 {[%clk 0:01:03]} 28. Qxd5+ {[%clk 0:02:05]}  Kh8 {[%clk 0:01:02]} 29. Qxb7 {[%clk 0:01:16]}  Qd2+ {[%clk 0:00:52]} 30. Kf1 {[%clk 0:01:05]}  fxg4 {[%clk 0:00:50]} 31. Re2 {[%clk 0:00:33]}  Qd1+ {[%clk 0:00:49]} 32. Kf2 {[%clk 0:00:20]}  Qxh1 {[%clk 0:00:47]} 33. Re3 {[%clk 0:00:18]}  Qh2+ {[%clk 0:00:43]} 34. Ke1 {[%clk 0:00:18]}  g3 {[%clk 0:00:42]} 0-1


[Site "https://www.chess.com"]